Body Name,Document Number,Service,Type of Expenditure,Invoice Date,Supplier Name,Cost to the Council (Amount Exc VAT),Month
EREWASH BOROUGH COUNCIL,15281,Homelessness                  ,Temporary Accommodation       ,22-Aug-2022,A38 WOODLANDS                           ,336.00,Sep-22
EREWASH BOROUGH COUNCIL,15280,Homelessness                  ,Temporary Accommodation       ,22-Aug-2022,A38 WOODLANDS                           ,854.00,Sep-22
EREWASH BOROUGH COUNCIL,15558,Homelessness                  ,Temporary Accommodation       ,29-Aug-2022,A38 WOODLANDS                           ,336.00,Sep-22
EREWASH BOROUGH COUNCIL,15557,Homelessness                  ,Temporary Accommodation       ,29-Aug-2022,A38 WOODLANDS                           ,854.00,Sep-22
EREWASH BOROUGH COUNCIL,15907,Homelessness                  ,Temporary Accommodation       ,12-Sep-2022,A38 WOODLANDS                           ,336.00,Sep-22
EREWASH BOROUGH COUNCIL,15908,Homelessness                  ,Temporary Accommodation       ,12-Sep-2022,A38 WOODLANDS                           ,854.00,Sep-22
EREWASH BOROUGH COUNCIL,15877,Training - Personnel Only     ,Qualification Training        ,01-Sep-2022,ACT NOW TRAINING LTD                    ,"2,150.00",Sep-22
EREWASH BOROUGH COUNCIL,16258,Street Scene                  ,Materials/Consumables         ,16-Sep-2022,AJ PEARS LTD                            ,280.00,Sep-22
EREWASH BOROUGH COUNCIL,15996,Homelessness                  ,Spend to Save                 ,16-Aug-2022,ALICJA & PAUL LANGLEY                   ,825.00,Sep-22
EREWASH BOROUGH COUNCIL,16790,Treasury and Bank Charges     ,Allpay/Post Office Charges    ,30-Sep-2022,ALLPAY LIMITED                          ,749.36,Sep-22
EREWASH BOROUGH COUNCIL,14727,Household Waste Collection    ,Repairs and Maintenance       ,02-Aug-2022,ALPHA PARTNER (MIDLANDS)  LIMITED       ,300.00,Sep-22
EREWASH BOROUGH COUNCIL,14727,Trade Waste                   ,Repairs and Maintenance       ,02-Aug-2022,ALPHA PARTNER (MIDLANDS)  LIMITED       ,300.00,Sep-22
EREWASH BOROUGH COUNCIL,14727,Kerbside Recycling Collection ,Repairs and Maintenance       ,02-Aug-2022,ALPHA PARTNER (MIDLANDS)  LIMITED       ,300.00,Sep-22
EREWASH BOROUGH COUNCIL,15574,Green Space                   ,Materials/Consumables         ,28-Aug-2022,ALPHA PARTNER (MIDLANDS)  LIMITED       ,520.00,Sep-22
EREWASH BOROUGH COUNCIL,15556,Green Space                   ,Materials/Consumables         ,28-Aug-2022,ALPHA PARTNER (MIDLANDS)  LIMITED       ,687.80,Sep-22
EREWASH BOROUGH COUNCIL,14727,Green Space                   ,Repairs and Maintenance       ,02-Aug-2022,ALPHA PARTNER (MIDLANDS)  LIMITED       ,300.00,Sep-22
EREWASH BOROUGH COUNCIL,14727,Street Scene                  ,Repairs and Maintenance       ,02-Aug-2022,ALPHA PARTNER (MIDLANDS)  LIMITED       ,300.00,Sep-22
EREWASH BOROUGH COUNCIL,14728,Property and Estates          ,Reactive Maintenance          ,02-Aug-2022,ALPHA PARTNER (MIDLANDS)  LIMITED       ,540.00,Sep-22
EREWASH BOROUGH COUNCIL,15576,Property and Estates          ,Reactive Maintenance          ,28-Aug-2022,ALPHA PARTNER (MIDLANDS)  LIMITED       ,"1,328.00",Sep-22
EREWASH BOROUGH COUNCIL,15711,ICT Support Services          ,Office Paper                  ,31-Aug-2022,ANTALIS DOCUMENT SUPPLIES               ,402.40,Sep-22
EREWASH BOROUGH COUNCIL,15338,ICT Support Services          ,Office Paper                  ,17-Aug-2022,ANTALIS DOCUMENT SUPPLIES               ,422.50,Sep-22
EREWASH BOROUGH COUNCIL,15539,ICT Support Services          ,Office Paper                  ,25-Aug-2022,ANTALIS DOCUMENT SUPPLIES               ,402.50,Sep-22
EREWASH BOROUGH COUNCIL,14858,Homelessness                  ,Temporary Accommodation       ,04-Aug-2022,ASCOT HOTEL                             ,420.00,Sep-22
EREWASH BOROUGH COUNCIL,15517,Homelessness                  ,Temporary Accommodation       ,11-Aug-2022,ASCOT HOTEL                             ,420.00,Sep-22
EREWASH BOROUGH COUNCIL,15900,Homelessness                  ,Temporary Accommodation       ,01-Sep-2022,ASCOT HOTEL                             ,420.00,Sep-22
EREWASH BOROUGH COUNCIL,15910,Homelessness                  ,Temporary Accommodation       ,22-Aug-2022,ASCOT HOTEL                             ,420.00,Sep-22
EREWASH BOROUGH COUNCIL,15911,Homelessness                  ,Temporary Accommodation       ,29-Aug-2022,ASCOT HOTEL                             ,420.00,Sep-22
EREWASH BOROUGH COUNCIL,15912,Homelessness                  ,Temporary Accommodation       ,05-Sep-2022,ASCOT HOTEL                             ,420.00,Sep-22
EREWASH BOROUGH COUNCIL,15529,Homelessness                  ,Temporary Accommodation       ,18-Aug-2022,ASCOT HOTEL                             ,420.00,Sep-22
EREWASH BOROUGH COUNCIL,15530,Homelessness                  ,Temporary Accommodation       ,25-Aug-2022,ASCOT HOTEL                             ,420.00,Sep-22
EREWASH BOROUGH COUNCIL,15700,Car Parking                   ,Planned Preventative Maintenan,04-Sep-2022,ATG ACCESS LTD                          ,"1,671.93",Sep-22
EREWASH BOROUGH COUNCIL,15285,Infec Disease & Food Poisoning,Work In Default               ,19-Aug-2022,AW LYMN LTD                             ,"1,530.00",Sep-22
EREWASH BOROUGH COUNCIL,15497,Planning                      ,Structural Property Works     ,25-Aug-2022,BAILY GARNER LLP                        ,"13,254.72",Sep-22
EREWASH BOROUGH COUNCIL,15495,Planning                      ,Structural Property Works     ,06-Jul-2022,BAILY GARNER LLP                        ,"2,280.00",Sep-22
EREWASH BOROUGH COUNCIL,15496,Planning                      ,Structural Property Works     ,07-Jul-2022,BAILY GARNER LLP                        ,"3,840.00",Sep-22
EREWASH BOROUGH COUNCIL,16353,ICT Support Services          ,Telephones                    ,22-Sep-2022,BRITISH TELECOMMUNICATIONS PLC          ,"1,711.30",Sep-22
EREWASH BOROUGH COUNCIL,15055,Urban Renewal                 ,Agency Staff                  ,10-Aug-2022,BUCKINGHAM FUTURES LIMITED              ,350.77,Sep-22
EREWASH BOROUGH COUNCIL,15226,Urban Renewal                 ,Agency Staff                  ,17-Aug-2022,BUCKINGHAM FUTURES LIMITED              ,"1,258.00",Sep-22
EREWASH BOROUGH COUNCIL,15490,Urban Renewal                 ,Agency Staff                  ,24-Aug-2022,BUCKINGHAM FUTURES LIMITED              ,"1,258.00",Sep-22
EREWASH BOROUGH COUNCIL,15847,Urban Renewal                 ,Agency Staff                  ,07-Sep-2022,BUCKINGHAM FUTURES LIMITED              ,"1,138.43",Sep-22
EREWASH BOROUGH COUNCIL,15682,Urban Renewal                 ,Agency Staff                  ,31-Aug-2022,BUCKINGHAM FUTURES LIMITED              ,"1,264.80",Sep-22
EREWASH BOROUGH COUNCIL,15674,Occupational Health & Welfare ,Occupational Health Service   ,01-Sep-2022,BUPA HEALTH CLINICS                     ,435.32,Sep-22
EREWASH BOROUGH COUNCIL,15750,Trees Hedges Local Nature Res ,Contracted Services           ,24-Aug-2022,CANOPY TREE SERVICES                    ,"12,910.00",Sep-22
EREWASH BOROUGH COUNCIL,15579,Revenues and Benefits         ,General Equipment             ,26-Aug-2022,CCS MEDIA LIMITED                       ,"2,444.50",Sep-22
EREWASH BOROUGH COUNCIL,15544,EBC Balance Sheet             ,Fuel Store                    ,11-Aug-2022,CERTAS ENERGY UK LIMITED T/A CARLTON FUE,"41,205.87",Sep-22
EREWASH BOROUGH COUNCIL,15262,Infec Disease & Food Poisoning,Contracted Services           ,19-Aug-2022,CHARTERED INSTITUTE OF ENVIORNMENTAL HTH,800.00,Sep-22
EREWASH BOROUGH COUNCIL,14889,Revenues and Benefits         ,Software Licences             ,05-Aug-2022,CIVICA UK LIMITED                       ,"6,587.03",Sep-22
EREWASH BOROUGH COUNCIL,15905,ICT Support Services          ,Mobile Phones                 ,01-Sep-2022,CLASS AFFINITY PROJECTS LTD             ,"2,410.79",Sep-22
EREWASH BOROUGH COUNCIL,15317,Green Space                   ,Materials/Consumables         ,19-Aug-2022,CROMWELL POLYTHENE LTD                  ,724.50,Sep-22
EREWASH BOROUGH COUNCIL,15536,Trade Waste                   ,Repairs and Maintenance       ,24-Aug-2022,DENNIS EAGLE LTD                        ,263.42,Sep-22
EREWASH BOROUGH COUNCIL,16067,EBC Balance Sheet             ,COVID 19 Omicron Hosp and Leis,12-Sep-2022,"DEPT FOR BUSINESS, ENERGY & IND STRATEGY","306,688.00",Sep-22
EREWASH BOROUGH COUNCIL,15545,EBC Balance Sheet             ,Payroll Coll Acc Superanuation,14-Sep-2022,DERBYSHIRE COUNTY COUNCIL...            ,"119,235.56",Sep-22
EREWASH BOROUGH COUNCIL,15545,EBC Balance Sheet             ,Payroll Coll Acc Superanuation,14-Sep-2022,DERBYSHIRE COUNTY COUNCIL...            ,"83,250.00",Sep-22
EREWASH BOROUGH COUNCIL,16393,Homelessness                  ,Spend to Save                 ,28-Sep-2022,DERVENTIO HOUSING TRUST CIC             ,756.00,Sep-22
EREWASH BOROUGH COUNCIL,15760,St Laurence Pre School        ,Planned Preventative Maint    ,05-Sep-2022,DP DOORS AND SHUTTERS LIMITED           ,"2,452.50",Sep-22
EREWASH BOROUGH COUNCIL,15301,Parks Other Buildings         ,Bridge Repairs and Maintenance,18-Aug-2022,EASTWOOD & PARTNERS                     ,"1,500.00",Sep-22
EREWASH BOROUGH COUNCIL,14854,Homelessness                  ,Homelessness-Lease Properties ,01-Aug-2022,EMH HOMES                               ,"1,142.62",Sep-22
EREWASH BOROUGH COUNCIL,14853,Homelessness                  ,Homelessness-Lease Properties ,01-Aug-2022,EMH HOMES                               ,"1,170.53",Sep-22
EREWASH BOROUGH COUNCIL,14855,Homelessness                  ,Homelessness-Lease Properties ,01-Aug-2022,EMH HOMES                               ,"1,240.06",Sep-22
EREWASH BOROUGH COUNCIL,15695,Discretionary Housing Payments,Discretionary Housing Payments,02-Sep-2022,EMH HOMES                               ,"35,000.00",Sep-22
EREWASH BOROUGH COUNCIL,15672,Household Waste Collection    ,Hire Charges                  ,31-Aug-2022,ENTERPRISE FLEX E RENT                  ,597.87,Sep-22
EREWASH BOROUGH COUNCIL,16069,EBC Balance Sheet             ,Payroll Coll Acc Labour Party ,20-Sep-2022,EREWASH LABOUR GROUP                    ,521.85,Sep-22
EREWASH BOROUGH COUNCIL,15326,Toll Bar House                ,Other Expenses                ,17-Aug-2022,EREWASH PARTNERSHIP (MANAGED WORKSPACE) ,"2,590.60",Sep-22
EREWASH BOROUGH COUNCIL,15327,Toll Bar House                ,Other Expenses                ,17-Aug-2022,EREWASH PARTNERSHIP (MANAGED WORKSPACE) ,"7,399.78",Sep-22
EREWASH BOROUGH COUNCIL,14759,Transport Trading Account     ,Lubricants and Anti-freeze    ,02-Aug-2022,EUROTRUCK MIDLANDS LTD                  ,255.00,Sep-22
EREWASH BOROUGH COUNCIL,15888,Trade Waste                   ,Agency Staff                  ,22-Aug-2022,EXTRA PERSONNEL LTD                     ,546.49,Sep-22
EREWASH BOROUGH COUNCIL,15380,Trade Waste                   ,Agency Staff                  ,08-Aug-2022,EXTRA PERSONNEL LTD                     ,546.49,Sep-22
EREWASH BOROUGH COUNCIL,15670,Trade Waste                   ,Agency Staff                  ,15-Aug-2022,EXTRA PERSONNEL LTD                     ,553.88,Sep-22
EREWASH BOROUGH COUNCIL,14836,Green Space                   ,Agency Staff                  ,04-Aug-2022,EXTRA PERSONNEL LTD                     ,139.10,Sep-22
EREWASH BOROUGH COUNCIL,15884,Green Space                   ,Agency Staff                  ,22-Aug-2022,EXTRA PERSONNEL LTD                     ,"1,859.58",Sep-22
EREWASH BOROUGH COUNCIL,16084,Green Space                   ,Agency Staff                  ,29-Aug-2022,EXTRA PERSONNEL LTD                     ,"1,945.20",Sep-22
EREWASH BOROUGH COUNCIL,15666,Green Space                   ,Agency Staff                  ,15-Aug-2022,EXTRA PERSONNEL LTD                     ,"1,848.52",Sep-22
EREWASH BOROUGH COUNCIL,15667,Green Space                   ,Agency Staff                  ,15-Aug-2022,EXTRA PERSONNEL LTD                     ,"2,553.79",Sep-22
EREWASH BOROUGH COUNCIL,15377,Green Space                   ,Agency Staff                  ,08-Aug-2022,EXTRA PERSONNEL LTD                     ,"2,770.52",Sep-22
EREWASH BOROUGH COUNCIL,16076,Green Space                   ,Agency Staff                  ,08-Aug-2022,EXTRA PERSONNEL LTD                     ,"2,059.46",Sep-22
EREWASH BOROUGH COUNCIL,15884,Public Conveniences           ,Agency Staff                  ,22-Aug-2022,EXTRA PERSONNEL LTD                     ,500.00,Sep-22
EREWASH BOROUGH COUNCIL,16084,Public Conveniences           ,Agency Staff                  ,29-Aug-2022,EXTRA PERSONNEL LTD                     ,500.00,Sep-22
EREWASH BOROUGH COUNCIL,15666,Public Conveniences           ,Agency Staff                  ,15-Aug-2022,EXTRA PERSONNEL LTD                     ,500.00,Sep-22
EREWASH BOROUGH COUNCIL,16076,Public Conveniences           ,Agency Staff                  ,08-Aug-2022,EXTRA PERSONNEL LTD                     ,500.00,Sep-22
EREWASH BOROUGH COUNCIL,14836,Street Scene                  ,Agency Staff                  ,04-Aug-2022,EXTRA PERSONNEL LTD                     ,139.10,Sep-22
EREWASH BOROUGH COUNCIL,15884,Street Scene                  ,Agency Staff                  ,22-Aug-2022,EXTRA PERSONNEL LTD                     ,"1,859.58",Sep-22
EREWASH BOROUGH COUNCIL,16084,Street Scene                  ,Agency Staff                  ,29-Aug-2022,EXTRA PERSONNEL LTD                     ,"1,945.20",Sep-22
EREWASH BOROUGH COUNCIL,15666,Street Scene                  ,Agency Staff                  ,15-Aug-2022,EXTRA PERSONNEL LTD                     ,"1,848.52",Sep-22
EREWASH BOROUGH COUNCIL,15667,Street Scene                  ,Agency Staff                  ,15-Aug-2022,EXTRA PERSONNEL LTD                     ,"2,553.79",Sep-22
EREWASH BOROUGH COUNCIL,15377,Street Scene                  ,Agency Staff                  ,08-Aug-2022,EXTRA PERSONNEL LTD                     ,"2,770.52",Sep-22
EREWASH BOROUGH COUNCIL,16076,Street Scene                  ,Agency Staff                  ,08-Aug-2022,EXTRA PERSONNEL LTD                     ,"2,059.46",Sep-22
EREWASH BOROUGH COUNCIL,15379,Civic Accommodation Ilkeston  ,Agency Staff                  ,08-Aug-2022,EXTRA PERSONNEL LTD                     ,250.38,Sep-22
EREWASH BOROUGH COUNCIL,15981,Revenues and Benefits         ,Postages                      ,15-Sep-2022,FRAMA UK LIMITED                        ,"5,000.00",Sep-22
EREWASH BOROUGH COUNCIL,15849,Kerbside Recycling Collection ,Waste Disposal                ,31-Aug-2022,GAE SMITH HOLDINGS T/A CASEPAK          ,828.14,Sep-22
EREWASH BOROUGH COUNCIL,14956,Kerbside Recycling Collection ,Waste Disposal                ,31-Jul-2022,GAE SMITH HOLDINGS T/A CASEPAK          ,"1,403.80",Sep-22
EREWASH BOROUGH COUNCIL,14846,Kerbside Recycling Collection ,Waste Disposal                ,31-Jul-2022,GAE SMITH HOLDINGS T/A CASEPAK          ,"8,093.81",Sep-22
EREWASH BOROUGH COUNCIL,15848,Kerbside Recycling Collection ,Waste Disposal                ,31-Aug-2022,GAE SMITH HOLDINGS T/A CASEPAK          ,"8,383.18",Sep-22
EREWASH BOROUGH COUNCIL,15845,Green Space                   ,Materials/Consumables         ,04-Sep-2022,GO TRAFFIC MANAGEMENT                   ,945.00,Sep-22
EREWASH BOROUGH COUNCIL,14850,Green Space                   ,Materials/Consumables         ,05-Aug-2022,GRAFFITI REMOVAL LTD                    ,406.50,Sep-22
EREWASH BOROUGH COUNCIL,15298,Democratic Representation     ,Hire Charges                  ,17-Aug-2022,HALL'S TRAVEL                           ,320.00,Sep-22
EREWASH BOROUGH COUNCIL,14961,Green Space                   ,Contracted Services           ,08-Aug-2022,HB INSULATIONS                          ,"5,895.00",Sep-22
EREWASH BOROUGH COUNCIL,15548,Personnel                     ,Apprenticeship Levy           ,19-Sep-2022,HMRC CUMBERNAULD                        ,"1,914.00",Sep-22
EREWASH BOROUGH COUNCIL,15548,Personnel                     ,Apprenticeship Levy           ,19-Sep-2022,HMRC CUMBERNAULD                        ,"1,250.00",Sep-22
EREWASH BOROUGH COUNCIL,16549,Personnel                     ,Apprenticeship Levy           ,30-Sep-2022,HMRC CUMBERNAULD                        ,"1,970.00",Sep-22
EREWASH BOROUGH COUNCIL,16549,Personnel                     ,Apprenticeship Levy           ,30-Sep-2022,HMRC CUMBERNAULD                        ,"1,250.00",Sep-22
EREWASH BOROUGH COUNCIL,15548,EBC Balance Sheet             ,Payroll Coll Acc - Income Tax ,19-Sep-2022,HMRC CUMBERNAULD                        ,"63,311.81",Sep-22
EREWASH BOROUGH COUNCIL,15550,EBC Balance Sheet             ,Payroll Coll Acc - Income Tax ,19-Sep-2022,HMRC CUMBERNAULD                        ,503.00,Sep-22
EREWASH BOROUGH COUNCIL,16549,EBC Balance Sheet             ,Payroll Coll Acc - Income Tax ,30-Sep-2022,HMRC CUMBERNAULD                        ,"64,398.01",Sep-22
EREWASH BOROUGH COUNCIL,15548,EBC Balance Sheet             ,Payroll Coll Acc National Ins ,19-Sep-2022,HMRC CUMBERNAULD                        ,"96,886.96",Sep-22
EREWASH BOROUGH COUNCIL,15550,EBC Balance Sheet             ,Payroll Coll Acc National Ins ,19-Sep-2022,HMRC CUMBERNAULD                        ,624.34,Sep-22
EREWASH BOROUGH COUNCIL,16549,EBC Balance Sheet             ,Payroll Coll Acc National Ins ,30-Sep-2022,HMRC CUMBERNAULD                        ,"97,805.73",Sep-22
EREWASH BOROUGH COUNCIL,15548,EBC Balance Sheet             ,Payroll Coll Acc Student Loan ,19-Sep-2022,HMRC CUMBERNAULD                        ,"1,228.00",Sep-22
EREWASH BOROUGH COUNCIL,16549,EBC Balance Sheet             ,Payroll Coll Acc Student Loan ,30-Sep-2022,HMRC CUMBERNAULD                        ,"1,229.00",Sep-22
EREWASH BOROUGH COUNCIL,14953,Legal Services                ,Agency Staff                  ,09-Aug-2022,HR ESSENTIALS LIMITED                   ,400.00,Sep-22
EREWASH BOROUGH COUNCIL,15121,Legal Services                ,Agency Staff                  ,16-Aug-2022,HR ESSENTIALS LIMITED                   ,400.00,Sep-22
EREWASH BOROUGH COUNCIL,15652,Legal Services                ,Agency Staff                  ,30-Aug-2022,HR ESSENTIALS LIMITED                   ,400.00,Sep-22
EREWASH BOROUGH COUNCIL,15355,Legal Services                ,Agency Staff                  ,23-Aug-2022,HR ESSENTIALS LIMITED                   ,400.00,Sep-22
EREWASH BOROUGH COUNCIL,15730,Household Waste Collection    ,Bins                          ,05-Aug-2022,IMPERIAL POLYTHENE                      ,891.90,Sep-22
EREWASH BOROUGH COUNCIL,16293,Non-domestic Rates Collection ,Fees Costs and Expenses       ,21-Sep-2022,INFORM CPI LTD                          ,640.00,Sep-22
EREWASH BOROUGH COUNCIL,15316,ICT Support Services          ,Data Lines                    ,17-Aug-2022,INSIGHT DIRECT (UK) LTD                 ,"8,915.67",Sep-22
EREWASH BOROUGH COUNCIL,15692,Car Parking                   ,Credit/Debit Card Charges     ,31-Aug-2022,INTERNATIONAL PARKING SYSTEMS UK LTD    ,"2,468.20",Sep-22
EREWASH BOROUGH COUNCIL,15282,Homelessness                  ,Agency Staff                  ,09-Aug-2022,JAMES ANDREWS RECRUITMENT SOLUTIONS     ,961.80,Sep-22
EREWASH BOROUGH COUNCIL,15283,Homelessness                  ,Agency Staff                  ,16-Aug-2022,JAMES ANDREWS RECRUITMENT SOLUTIONS     ,"1,202.25",Sep-22
EREWASH BOROUGH COUNCIL,15564,Homelessness                  ,Agency Staff                  ,24-Aug-2022,JAMES ANDREWS RECRUITMENT SOLUTIONS     ,"1,202.25",Sep-22
EREWASH BOROUGH COUNCIL,16088,Homelessness                  ,Agency Staff                  ,07-Sep-2022,JAMES ANDREWS RECRUITMENT SOLUTIONS     ,961.80,Sep-22
EREWASH BOROUGH COUNCIL,15739,Homelessness                  ,Agency Staff                  ,31-Aug-2022,JAMES ANDREWS RECRUITMENT SOLUTIONS     ,"1,202.25",Sep-22
EREWASH BOROUGH COUNCIL,16089,Homelessness                  ,Agency Staff                  ,14-Sep-2022,JAMES ANDREWS RECRUITMENT SOLUTIONS     ,"1,202.25",Sep-22
EREWASH BOROUGH COUNCIL,16373,Homelessness                  ,Agency Staff                  ,21-Sep-2022,JAMES ANDREWS RECRUITMENT SOLUTIONS     ,"1,202.25",Sep-22
EREWASH BOROUGH COUNCIL,14938,Food Inspection and Hygiene   ,Materials/Consumables         ,04-Aug-2022,JENSON PRESS PRINTERS                   ,638.00,Sep-22
EREWASH BOROUGH COUNCIL,16033,Building Control - Fee Earning,Consultants Fees              ,30-Aug-2022,JNP GROUP CONSULTING ENGINEERS LTD      ,431.00,Sep-22
EREWASH BOROUGH COUNCIL,15716,Homelessness                  ,Homelessness-Lease Properties ,01-Sep-2022,JP'S GROUNDS & MAINTENANCE SERVICES     ,375.00,Sep-22
EREWASH BOROUGH COUNCIL,15372,Household Waste Collection    ,General Equipment             ,23-Aug-2022,KEYTRACKER LIMITED                      ,503.00,Sep-22
EREWASH BOROUGH COUNCIL,15702,EBC Balance Sheet             ,Childcare Salary Sacrifice    ,05-Sep-2022,KIDDIVOUCHERS LTD                       ,543.00,Sep-22
EREWASH BOROUGH COUNCIL,15685,Front Line Support Services   ,Security                      ,31-Aug-2022,KINGS ARMOURED SECURITY SERVICES        ,525.00,Sep-22
EREWASH BOROUGH COUNCIL,15683,Car Parking                   ,Contracted Services           ,31-Aug-2022,KINGS ARMOURED SECURITY SERVICES        ,"1,592.10",Sep-22
EREWASH BOROUGH COUNCIL,15719,Legal Services                ,Reference Literature and Publi,26-Aug-2022,LEXISNEXIS BUTTERWORTHS                 ,540.00,Sep-22
EREWASH BOROUGH COUNCIL,14225,Homelessness                  ,Computer Software             ,30-Jun-2022,LOCATA (HOUSING SERVICES) LTD           ,"3,750.00",Sep-22
EREWASH BOROUGH COUNCIL,15751,Household Waste Collection    ,Tyres                         ,31-Aug-2022,LODGE TYRE COMPANY LTD                  ,990.45,Sep-22
EREWASH BOROUGH COUNCIL,15751,Trade Waste                   ,Tyres                         ,31-Aug-2022,LODGE TYRE COMPANY LTD                  ,440.00,Sep-22
EREWASH BOROUGH COUNCIL,15751,Kerbside Recycling Collection ,Tyres                         ,31-Aug-2022,LODGE TYRE COMPANY LTD                  ,490.00,Sep-22
EREWASH BOROUGH COUNCIL,15751,Ilkeston Admin and Courier    ,Tyres                         ,31-Aug-2022,LODGE TYRE COMPANY LTD                  ,131.50,Sep-22
EREWASH BOROUGH COUNCIL,15751,Green Space                   ,Tyres                         ,31-Aug-2022,LODGE TYRE COMPANY LTD                  ,623.77,Sep-22
EREWASH BOROUGH COUNCIL,15751,Street Scene                  ,Tyres                         ,31-Aug-2022,LODGE TYRE COMPANY LTD                  ,60.00,Sep-22
EREWASH BOROUGH COUNCIL,15751,Dog Control                   ,Tyres                         ,31-Aug-2022,LODGE TYRE COMPANY LTD                  ,46.00,Sep-22
EREWASH BOROUGH COUNCIL,15751,Neighbourhood Wardens         ,Tyres                         ,31-Aug-2022,LODGE TYRE COMPANY LTD                  ,46.00,Sep-22
EREWASH BOROUGH COUNCIL,15710,Homelessness                  ,Spend to Save                 ,02-Aug-2022,LONGHURST GROUP                         ,361.44,Sep-22
EREWASH BOROUGH COUNCIL,15723,Household Waste Collection    ,Personal Protective Equipment ,31-Aug-2022,MAIN MAN SUPPLIES LTD                   ,405.37,Sep-22
EREWASH BOROUGH COUNCIL,15723,Kerbside Recycling Collection ,Personal Protective Equipment ,31-Aug-2022,MAIN MAN SUPPLIES LTD                   ,239.32,Sep-22
EREWASH BOROUGH COUNCIL,15571,Insurances (Corporate Matters),Insurance                     ,23-Aug-2022,MARSH LTD                               ,504.00,Sep-22
EREWASH BOROUGH COUNCIL,16048,Insurances (Corporate Matters),Insurance                     ,07-Sep-2022,MARSH LTD                               ,"1,850.00",Sep-22
EREWASH BOROUGH COUNCIL,14706,Household Waste Collection    ,Vehicle Tracking Repairs and M,01-Aug-2022,MASTERNAUT (UK) LTD                     ,665.56,Sep-22
EREWASH BOROUGH COUNCIL,14706,Trade Waste                   ,Vehicle Tracking Repairs and M,01-Aug-2022,MASTERNAUT (UK) LTD                     ,95.08,Sep-22
EREWASH BOROUGH COUNCIL,14706,Kerbside Recycling Collection ,Vehicle Tracking Repairs and M,01-Aug-2022,MASTERNAUT (UK) LTD                     ,237.70,Sep-22
EREWASH BOROUGH COUNCIL,14706,Ilkeston Admin and Courier    ,Vehicle Tracking Repairs and M,01-Aug-2022,MASTERNAUT (UK) LTD                     ,47.54,Sep-22
EREWASH BOROUGH COUNCIL,14706,Green Space                   ,Vehicle Tracking Repairs and M,01-Aug-2022,MASTERNAUT (UK) LTD                     ,"1,188.50",Sep-22
EREWASH BOROUGH COUNCIL,14706,Street Scene                  ,Vehicle Tracking Repairs and M,01-Aug-2022,MASTERNAUT (UK) LTD                     ,618.02,Sep-22
EREWASH BOROUGH COUNCIL,14706,Neighbourhood Wardens         ,Vehicle Tracking Repairs and M,01-Aug-2022,MASTERNAUT (UK) LTD                     ,332.78,Sep-22
EREWASH BOROUGH COUNCIL,14706,Property and Estates          ,General Equipment             ,01-Aug-2022,MASTERNAUT (UK) LTD                     ,47.54,Sep-22
EREWASH BOROUGH COUNCIL,14892,Building Control - Fee Earning,Agency Staff                  ,04-Aug-2022,MATCHTECH GROUP (UK) LIMITED            ,825.00,Sep-22
EREWASH BOROUGH COUNCIL,14893,Building Control - Fee Earning,Agency Staff                  ,04-Aug-2022,MATCHTECH GROUP (UK) LIMITED            ,"1,292.50",Sep-22
EREWASH BOROUGH COUNCIL,14894,Building Control - Fee Earning,Agency Staff                  ,04-Aug-2022,MATCHTECH GROUP (UK) LIMITED            ,"1,650.00",Sep-22
EREWASH BOROUGH COUNCIL,15216,Building Control - Fee Earning,Agency Staff                  ,11-Aug-2022,MATCHTECH GROUP (UK) LIMITED            ,825.00,Sep-22
EREWASH BOROUGH COUNCIL,15214,Building Control - Fee Earning,Agency Staff                  ,11-Aug-2022,MATCHTECH GROUP (UK) LIMITED            ,"1,292.50",Sep-22
EREWASH BOROUGH COUNCIL,15218,Building Control - Fee Earning,Agency Staff                  ,11-Aug-2022,MATCHTECH GROUP (UK) LIMITED            ,"1,650.00",Sep-22
EREWASH BOROUGH COUNCIL,15224,Building Control - Fee Earning,Agency Staff                  ,18-Aug-2022,MATCHTECH GROUP (UK) LIMITED            ,825.00,Sep-22
EREWASH BOROUGH COUNCIL,15653,Building Control - Fee Earning,Agency Staff                  ,31-Aug-2022,MATCHTECH GROUP (UK) LIMITED            ,825.00,Sep-22
EREWASH BOROUGH COUNCIL,15657,Building Control - Fee Earning,Agency Staff                  ,31-Aug-2022,MATCHTECH GROUP (UK) LIMITED            ,825.00,Sep-22
EREWASH BOROUGH COUNCIL,15656,Building Control - Fee Earning,Agency Staff                  ,31-Aug-2022,MATCHTECH GROUP (UK) LIMITED            ,935.00,Sep-22
EREWASH BOROUGH COUNCIL,15661,Building Control - Fee Earning,Agency Staff                  ,31-Aug-2022,MATCHTECH GROUP (UK) LIMITED            ,935.00,Sep-22
EREWASH BOROUGH COUNCIL,15660,Building Control - Fee Earning,Agency Staff                  ,31-Aug-2022,MATCHTECH GROUP (UK) LIMITED            ,"1,650.00",Sep-22
EREWASH BOROUGH COUNCIL,14935,Civic Accommodation Ilkeston  ,PPM Mechanical and Equipment  ,05-Aug-2022,MDB PLUMBING (NOTTM) LTD                ,867.66,Sep-22
EREWASH BOROUGH COUNCIL,15293,Occupational Health & Welfare ,Occupational Health Service   ,05-Aug-2022,MEDIGOLD HEALTH CONSULTANCY LIMITED     ,613.00,Sep-22
EREWASH BOROUGH COUNCIL,15587,Kerbside Recycling Collection ,Bins                          ,25-Aug-2022,MGB PLASTICS LTD                        ,"1,530.00",Sep-22
EREWASH BOROUGH COUNCIL,15587,Kerbside Recycling Collection ,Bins                          ,25-Aug-2022,MGB PLASTICS LTD                        ,305.00,Sep-22
EREWASH BOROUGH COUNCIL,16284,Chief Executives Office       ,Subscription - East Mids RLGA ,15-Jul-2022,NOTTINGHAM CITY COUNCIL                 ,"5,535.00",Sep-22
EREWASH BOROUGH COUNCIL,15047,Infec Disease & Food Poisoning,Fees Costs and Expenses       ,10-Aug-2022,OSBORNE RICHARDSON                      ,522.00,Sep-22
EREWASH BOROUGH COUNCIL,15474,Infec Disease & Food Poisoning,Fees Costs and Expenses       ,24-Aug-2022,OSBORNE RICHARDSON                      ,504.00,Sep-22
EREWASH BOROUGH COUNCIL,15689,Infec Disease & Food Poisoning,Fees Costs and Expenses       ,31-Aug-2022,OSBORNE RICHARDSON                      ,366.00,Sep-22
EREWASH BOROUGH COUNCIL,15688,Infec Disease & Food Poisoning,Fees Costs and Expenses       ,31-Aug-2022,OSBORNE RICHARDSON                      ,499.00,Sep-22
EREWASH BOROUGH COUNCIL,15048,Infec Disease & Food Poisoning,Contracted Services           ,10-Aug-2022,OYSTER PARTNERSHIP LTD                  ,619.32,Sep-22
EREWASH BOROUGH COUNCIL,15213,Infec Disease & Food Poisoning,Contracted Services           ,17-Aug-2022,OYSTER PARTNERSHIP LTD                  ,611.96,Sep-22
EREWASH BOROUGH COUNCIL,15476,Infec Disease & Food Poisoning,Contracted Services           ,24-Aug-2022,OYSTER PARTNERSHIP LTD                  ,611.04,Sep-22
EREWASH BOROUGH COUNCIL,15693,Infec Disease & Food Poisoning,Contracted Services           ,31-Aug-2022,OYSTER PARTNERSHIP LTD                  ,605.52,Sep-22
EREWASH BOROUGH COUNCIL,16289,Environmental Protection Act  ,Work In Default               ,20-Sep-2022,P G BOSWORTH LIMITED                    ,980.00,Sep-22
EREWASH BOROUGH COUNCIL,16287,Environmental Protection Act  ,Work In Default               ,20-Sep-2022,P G BOSWORTH LIMITED                    ,"1,150.00",Sep-22
EREWASH BOROUGH COUNCIL,15511,Leisure Services              ,Contracted Services           ,22-Aug-2022,PARKWOOD LEISURE LTD                    ,"28,211.78",Sep-22
EREWASH BOROUGH COUNCIL,16244,EBC Balance Sheet             ,EBC Fit for Work Scheme       ,23-Sep-2022,PARKWOOD LEISURE LTD                    ,486.00,Sep-22
EREWASH BOROUGH COUNCIL,15575,Erewash Museum                ,Exhibitions                   ,31-Aug-2022,REDACTED PERSONAL DATA,380.00,Sep-22
EREWASH BOROUGH COUNCIL,16019,Treasury and Bank Charges     ,Credit/Debit Card Charges     ,12-Sep-2022,PAY 360 LIMITED (CAPITA)                ,"4,261.64",Sep-22
EREWASH BOROUGH COUNCIL,15893,Trade Waste                   ,Trade Waste                   ,12-Sep-2022,REDACTED PERSONAL DATA,486.72,Sep-22
EREWASH BOROUGH COUNCIL,15758,Community Grants              ,Project Grants                ,07-Sep-2022,REDACTED PERSONAL DATA,600.00,Sep-22
EREWASH BOROUGH COUNCIL,15919,Green Space                   ,Road Taxes                    ,13-Sep-2022,REDACTED PERSONAL DATA,580.00,Sep-22
EREWASH BOROUGH COUNCIL,15919,Street Scene                  ,Road Taxes                    ,13-Sep-2022,REDACTED PERSONAL DATA,490.00,Sep-22
EREWASH BOROUGH COUNCIL,15919,Dog Control                   ,Road Taxes                    ,13-Sep-2022,REDACTED PERSONAL DATA,580.00,Sep-22
EREWASH BOROUGH COUNCIL,15919,Neighbourhood Wardens         ,Road Taxes                    ,13-Sep-2022,REDACTED PERSONAL DATA,"1,160.00",Sep-22
EREWASH BOROUGH COUNCIL,15919,Property and Estates          ,Road Taxes                    ,13-Sep-2022,REDACTED PERSONAL DATA,580.00,Sep-22
EREWASH BOROUGH COUNCIL,15109,Property and Estates          ,Repairs and Maintenance       ,12-Aug-2022,PEEL ELECTRICAL LTD                     ,310.30,Sep-22
EREWASH BOROUGH COUNCIL,15311,Property and Estates          ,Repairs and Maintenance       ,17-Aug-2022,PEEL ELECTRICAL LTD                     ,291.64,Sep-22
EREWASH BOROUGH COUNCIL,15698,Property and Estates          ,Repairs and Maintenance       ,02-Sep-2022,PEEL ELECTRICAL LTD                     ,305.12,Sep-22
EREWASH BOROUGH COUNCIL,15560,,,22-Aug-2022,PENHAM EXCEL LIMITED                    ,660.72,Sep-22
EREWASH BOROUGH COUNCIL,15914,,,12-Sep-2022,PENHAM EXCEL LIMITED                    ,819.38,Sep-22
EREWASH BOROUGH COUNCIL,15740,,,05-Sep-2022,PENHAM EXCEL LIMITED                    ,821.27,Sep-22
EREWASH BOROUGH COUNCIL,15091,Green Space                   ,Materials/Consumables         ,08-Aug-2022,PENTLAND PLANTS LTD                     ,"1,387.57",Sep-22
EREWASH BOROUGH COUNCIL,15588,Green Space                   ,Materials/Consumables         ,23-Aug-2022,PENTLAND PLANTS LTD                     ,"1,080.59",Sep-22
EREWASH BOROUGH COUNCIL,15065,Planning                      ,External Property Works       ,05-Aug-2022,PER CONSULTING LTD                      ,"16,000.00",Sep-22
EREWASH BOROUGH COUNCIL,16218,Regulatory and Housing Service,Vehicles                      ,13-Sep-2022,PERRYS                                  ,"15,069.53",Sep-22
EREWASH BOROUGH COUNCIL,16218,Regulatory and Housing Service,Vehicles                      ,13-Sep-2022,PERRYS                                  ,345.00,Sep-22
EREWASH BOROUGH COUNCIL,16217,Regulatory and Housing Service,Vehicles                      ,13-Sep-2022,PERRYS                                  ,"37,293.25",Sep-22
EREWASH BOROUGH COUNCIL,16217,Regulatory and Housing Service,Vehicles                      ,13-Sep-2022,PERRYS                                  ,345.00,Sep-22
EREWASH BOROUGH COUNCIL,15726,Civic Transport               ,Hire Charges                  ,31-Aug-2022,PINNACLE EXECUTIVE CARS LIMITED         ,333.00,Sep-22
EREWASH BOROUGH COUNCIL,15726,Civic Transport               ,Hire Charges                  ,31-Aug-2022,PINNACLE EXECUTIVE CARS LIMITED         ,"1,159.29",Sep-22
EREWASH BOROUGH COUNCIL,15569,Community Services            ,Stationery                    ,04-Aug-2022,PPL PRS LTD                             ,326.60,Sep-22
EREWASH BOROUGH COUNCIL,15864,Street Scene                  ,Vehicle Sweeper Brushes       ,05-Sep-2022,PROBRUSH                                ,"2,372.30",Sep-22
EREWASH BOROUGH COUNCIL,15503,Household Waste Collection    ,Personal Protective Equipment ,24-Aug-2022,PROTECTIVE WEAR SUPPLIES LTD            ,133.20,Sep-22
EREWASH BOROUGH COUNCIL,15503,Household Waste Collection    ,Personal Protective Equipment ,24-Aug-2022,PROTECTIVE WEAR SUPPLIES LTD            ,133.20,Sep-22
EREWASH BOROUGH COUNCIL,15503,Household Waste Collection    ,Personal Protective Equipment ,24-Aug-2022,PROTECTIVE WEAR SUPPLIES LTD            ,133.20,Sep-22
EREWASH BOROUGH COUNCIL,15503,Household Waste Collection    ,Personal Protective Equipment ,24-Aug-2022,PROTECTIVE WEAR SUPPLIES LTD            ,133.20,Sep-22
EREWASH BOROUGH COUNCIL,15503,Kerbside Recycling Collection ,Personal Protective Equipment ,24-Aug-2022,PROTECTIVE WEAR SUPPLIES LTD            ,133.20,Sep-22
EREWASH BOROUGH COUNCIL,15503,Kerbside Recycling Collection ,Personal Protective Equipment ,24-Aug-2022,PROTECTIVE WEAR SUPPLIES LTD            ,133.20,Sep-22
EREWASH BOROUGH COUNCIL,15503,Kerbside Recycling Collection ,Personal Protective Equipment ,24-Aug-2022,PROTECTIVE WEAR SUPPLIES LTD            ,133.20,Sep-22
EREWASH BOROUGH COUNCIL,15503,Kerbside Recycling Collection ,Personal Protective Equipment ,24-Aug-2022,PROTECTIVE WEAR SUPPLIES LTD            ,133.20,Sep-22
EREWASH BOROUGH COUNCIL,15478,Green Space                   ,Materials/Consumables         ,23-Aug-2022,PROTECTIVE WEAR SUPPLIES LTD            ,365.40,Sep-22
EREWASH BOROUGH COUNCIL,15734,Economic Development          ,Contracted Services           ,01-Sep-2022,PROXIMITY FUTURES T/A ELEPHANT WIFI     ,303.33,Sep-22
EREWASH BOROUGH COUNCIL,16240,EBC Balance Sheet             ,Payroll Coll Acc - AVCS       ,23-Sep-2022,PRUDENTIAL                              ,"1,227.60",Sep-22
EREWASH BOROUGH COUNCIL,15867,Planning                      ,Structural Property Works     ,05-Sep-2022,QUANTUM INTELLIGENT TRADING LTD         ,"1,590.00",Sep-22
EREWASH BOROUGH COUNCIL,15696,Building Control Adv & Inform ,General Equipment             ,01-Sep-2022,RANSOMWOOD ESTATES UK LIMITED           ,686.59,Sep-22
EREWASH BOROUGH COUNCIL,15127,Building Control - Fee Earning,Agency Staff                  ,05-Aug-2022,REED SPECIALIST RECRUITMENT LTD         ,612.86,Sep-22
EREWASH BOROUGH COUNCIL,15590,Building Control - Fee Earning,Agency Staff                  ,12-Aug-2022,REED SPECIALIST RECRUITMENT LTD         ,667.58,Sep-22
EREWASH BOROUGH COUNCIL,15591,Building Control - Fee Earning,Agency Staff                  ,19-Aug-2022,REED SPECIALIST RECRUITMENT LTD         ,674.88,Sep-22
EREWASH BOROUGH COUNCIL,16034,Building Control - Fee Earning,Agency Staff                  ,02-Sep-2022,REED SPECIALIST RECRUITMENT LTD         ,521.66,Sep-22
EREWASH BOROUGH COUNCIL,15708,Communications                ,General Publicity and Promotio,31-Aug-2022,ROYAL MAIL GROUP LTD.                   ,"5,087.97",Sep-22
EREWASH BOROUGH COUNCIL,15291,Revenues and Benefits         ,Postages                      ,08-Aug-2022,ROYAL MAIL GROUP LTD.                   ,360.00,Sep-22
EREWASH BOROUGH COUNCIL,15342,Revenues and Benefits         ,Postages                      ,10-Aug-2022,ROYAL MAIL GROUP LTD.                   ,"1,306.97",Sep-22
EREWASH BOROUGH COUNCIL,15759,Revenues and Benefits         ,Postages                      ,31-Aug-2022,ROYAL MAIL GROUP LTD.                   ,"1,539.06",Sep-22
EREWASH BOROUGH COUNCIL,15343,Revenues and Benefits         ,Postages                      ,17-Aug-2022,ROYAL MAIL GROUP LTD.                   ,"1,013.90",Sep-22
EREWASH BOROUGH COUNCIL,15568,Green Space                   ,Repairs and Maintenance       ,26-Aug-2022,RUSSELLS (KIRBYMOORSIDE) LIMITED        ,280.84,Sep-22
EREWASH BOROUGH COUNCIL,15568,Green Space                   ,Repairs and Maintenance       ,26-Aug-2022,RUSSELLS (KIRBYMOORSIDE) LIMITED        ,632.50,Sep-22
EREWASH BOROUGH COUNCIL,15130,Green Space                   ,Repairs and Maintenance       ,12-Aug-2022,RUSSELLS (KIRBYMOORSIDE) LIMITED        ,800.34,Sep-22
EREWASH BOROUGH COUNCIL,15234,Registration of Electors      ,Stationery                    ,19-Aug-2022,SCI PRINT LTD                           ,"7,315.59",Sep-22
EREWASH BOROUGH COUNCIL,15917,Green Space                   ,Metered Water                 ,01-Sep-2022,SCOTTISH WATER BUSINESS STREAM LIMITED  ,"2,803.52",Sep-22
EREWASH BOROUGH COUNCIL,15917,Public Conveniences           ,Metered Water                 ,01-Sep-2022,SCOTTISH WATER BUSINESS STREAM LIMITED  ,"1,010.45",Sep-22
EREWASH BOROUGH COUNCIL,15917,Merlin Way Depot              ,Metered Water                 ,01-Sep-2022,SCOTTISH WATER BUSINESS STREAM LIMITED  ,"1,441.77",Sep-22
EREWASH BOROUGH COUNCIL,15917,Civic Accommodation Ilkeston  ,Metered Water                 ,01-Sep-2022,SCOTTISH WATER BUSINESS STREAM LIMITED  ,386.11,Sep-22
EREWASH BOROUGH COUNCIL,15917,Toll Bar House                ,Metered Water                 ,01-Sep-2022,SCOTTISH WATER BUSINESS STREAM LIMITED  ,699.61,Sep-22
EREWASH BOROUGH COUNCIL,15067,Planning                      ,Structural Property Works     ,11-Aug-2022,SCREEN PHOTOGRAPHY LTD                  ,350.00,Sep-22
EREWASH BOROUGH COUNCIL,15107,Street Scene                  ,Maintenance of Bus Shelters   ,09-Aug-2022,SHELTER MAINTENANCE CO                  ,644.00,Sep-22
EREWASH BOROUGH COUNCIL,15752,Street Scene                  ,Maintenance of Bus Shelters   ,22-Jul-2022,SHELTER MAINTENANCE CO                  ,"7,443.89",Sep-22
EREWASH BOROUGH COUNCIL,15749,Director of Resources         ,Agency Staff                  ,31-Aug-2022,SOLACE IN BUSINESS                      ,"17,820.00",Sep-22
EREWASH BOROUGH COUNCIL,15289,Director of Resources         ,Agency Staff                  ,18-Aug-2022,SOLACE IN BUSINESS                      ,"11,880.00",Sep-22
EREWASH BOROUGH COUNCIL,16055,Erewash Museum                ,Special Events                ,24-Aug-2022,SPIRAL ARTS                             ,300.00,Sep-22
EREWASH BOROUGH COUNCIL,15546,Civic Duties Hospitality      ,Mayor's Award                 ,17-Mar-2022,SPURCROFT CIVIC                         ,420.00,Sep-22
EREWASH BOROUGH COUNCIL,15346,Parks Other Buildings         ,Bridge Repairs and Maintenance,23-Aug-2022,STEELCRAFT FABRICATIONS                 ,300.00,Sep-22
EREWASH BOROUGH COUNCIL,13759,Corporate Health and Safety   ,Water Testing (Legionella)    ,30-Jun-2022,STERILIZING SERVICES LTD                ,946.40,Sep-22
EREWASH BOROUGH COUNCIL,14703,Corporate Health and Safety   ,Water Testing (Legionella)    ,29-Jul-2022,STERILIZING SERVICES LTD                ,"1,126.40",Sep-22
EREWASH BOROUGH COUNCIL,15889,Green Space                   ,Materials/Consumables         ,02-Sep-2022,REDACTED PERSONAL DATA,"3,000.80",Sep-22
EREWASH BOROUGH COUNCIL,14438,CCTV - Ilkeston and Long Eaton,Contracted Services           ,20-Jul-2022,SYNECTICS SECURITY LIMITED              ,"7,920.50",Sep-22
EREWASH BOROUGH COUNCIL,15220,CCTV - Ilkeston and Long Eaton,Contracted Services           ,17-Aug-2022,SYNECTICS SECURITY LIMITED              ,"1,523.19",Sep-22
EREWASH BOROUGH COUNCIL,16038,Street Scene                  ,Repairs and Maintenance       ,02-Sep-2022,T C HARRISON GROUP LTD                  ,274.38,Sep-22
EREWASH BOROUGH COUNCIL,15500,Green Space                   ,Materials/Consumables         ,25-Aug-2022,T H HEATH  CONTRACTS  LTD               ,280.00,Sep-22
EREWASH BOROUGH COUNCIL,15582,Green Space                   ,Contracted Services           ,25-Aug-2022,T H HEATH  CONTRACTS  LTD               ,860.00,Sep-22
EREWASH BOROUGH COUNCIL,15499,Green Space                   ,Contracted Services           ,25-Aug-2022,T H HEATH  CONTRACTS  LTD               ,"3,160.78",Sep-22
EREWASH BOROUGH COUNCIL,15729,Green Space                   ,Contracted Services           ,31-Aug-2022,T H HEATH  CONTRACTS  LTD               ,"2,600.00",Sep-22
EREWASH BOROUGH COUNCIL,16231,Green Space                   ,Contracted Services           ,05-Sep-2022,T H HEATH  CONTRACTS  LTD               ,"3,530.00",Sep-22
EREWASH BOROUGH COUNCIL,15755,Arts Development              ,Special Events                ,05-Sep-2022,TAGTAP AR LTD.                          ,440.00,Sep-22
EREWASH BOROUGH COUNCIL,15288,Transport Trading Account     ,Repairs and Maintenance       ,19-Aug-2022,TECALEMIT GARAGE EQUIPMENT CO LTD       ,100.00,Sep-22
EREWASH BOROUGH COUNCIL,15288,Household Waste Collection    ,Repairs and Maintenance       ,19-Aug-2022,TECALEMIT GARAGE EQUIPMENT CO LTD       ,198.00,Sep-22
EREWASH BOROUGH COUNCIL,15288,Trade Waste                   ,Repairs and Maintenance       ,19-Aug-2022,TECALEMIT GARAGE EQUIPMENT CO LTD       ,198.00,Sep-22
EREWASH BOROUGH COUNCIL,15288,Kerbside Recycling Collection ,Repairs and Maintenance       ,19-Aug-2022,TECALEMIT GARAGE EQUIPMENT CO LTD       ,198.00,Sep-22
EREWASH BOROUGH COUNCIL,15288,Ilkeston Admin and Courier    ,Repairs and Maintenance       ,19-Aug-2022,TECALEMIT GARAGE EQUIPMENT CO LTD       ,100.00,Sep-22
EREWASH BOROUGH COUNCIL,15288,Green Space                   ,Repairs and Maintenance       ,19-Aug-2022,TECALEMIT GARAGE EQUIPMENT CO LTD       ,198.00,Sep-22
EREWASH BOROUGH COUNCIL,15288,Street Scene                  ,Repairs and Maintenance       ,19-Aug-2022,TECALEMIT GARAGE EQUIPMENT CO LTD       ,198.00,Sep-22
EREWASH BOROUGH COUNCIL,15288,Dog Control                   ,Repairs and Maintenance       ,19-Aug-2022,TECALEMIT GARAGE EQUIPMENT CO LTD       ,100.00,Sep-22
EREWASH BOROUGH COUNCIL,15288,Neighbourhood Wardens         ,Repairs and Maintenance       ,19-Aug-2022,TECALEMIT GARAGE EQUIPMENT CO LTD       ,100.00,Sep-22
EREWASH BOROUGH COUNCIL,15288,Outreach Project              ,Repairs and Maintenance       ,19-Aug-2022,TECALEMIT GARAGE EQUIPMENT CO LTD       ,100.00,Sep-22
EREWASH BOROUGH COUNCIL,15288,Property and Estates          ,Repairs and Maintenance       ,19-Aug-2022,TECALEMIT GARAGE EQUIPMENT CO LTD       ,100.00,Sep-22
EREWASH BOROUGH COUNCIL,15046,Property and Estates          ,Alarms Reactive Maintenance   ,10-Aug-2022,TECSERV UK                              ,384.00,Sep-22
EREWASH BOROUGH COUNCIL,15087,Toll Bar House                ,Alarms Planned Maintenence    ,11-Aug-2022,TECSERV UK                              ,256.76,Sep-22
EREWASH BOROUGH COUNCIL,15534,EBC Balance Sheet             ,Fuel Store                    ,11-Aug-2022,TENNANTS DISTRIBUTION LTD               ,650.00,Sep-22
EREWASH BOROUGH COUNCIL,15538,Kerbside Recycling Collection ,Repairs and Maintenance       ,19-Aug-2022,TERBERG MATEC UK                        ,311.44,Sep-22
EREWASH BOROUGH COUNCIL,15538,Kerbside Recycling Collection ,Repairs and Maintenance       ,19-Aug-2022,TERBERG MATEC UK                        ,524.62,Sep-22
EREWASH BOROUGH COUNCIL,14762,Green Space                   ,Materials/Consumables         ,03-Aug-2022,THE RADAR KEY COMPANY                   ,265.00,Sep-22
EREWASH BOROUGH COUNCIL,16864,Green Space                   ,Fuel                          ,30-Sep-2022,THE RIGHT FUELCARD COMPANY LTD          ,816.81,Sep-22
EREWASH BOROUGH COUNCIL,15873,Personnel                     ,Recruitment Expenses          ,07-Sep-2022,TILE HILL EXECUTIVE RECRUITMENT         ,"13,065.00",Sep-22
EREWASH BOROUGH COUNCIL,15370,Trees Hedges Local Nature Res ,Contracted Services           ,22-Aug-2022,TOM RICHARDS TREE SERVICES              ,300.00,Sep-22
EREWASH BOROUGH COUNCIL,15369,Trees Hedges Local Nature Res ,Contracted Services           ,22-Aug-2022,TOM RICHARDS TREE SERVICES              ,350.00,Sep-22
EREWASH BOROUGH COUNCIL,15583,Trees Hedges Local Nature Res ,Contracted Services           ,25-Aug-2022,TOM RICHARDS TREE SERVICES              ,850.00,Sep-22
EREWASH BOROUGH COUNCIL,16091,Trees Hedges Local Nature Res ,Contracted Services           ,28-Apr-2022,TOM RICHARDS TREE SERVICES              ,300.00,Sep-22
EREWASH BOROUGH COUNCIL,15319,Erewash Museum                ,Electricity                   ,17-Aug-2022,TOTALENERGIES GAS & POWER LTD           ,267.31,Sep-22
EREWASH BOROUGH COUNCIL,15319,Green Space                   ,Electricity                   ,17-Aug-2022,TOTALENERGIES GAS & POWER LTD           ,856.41,Sep-22
EREWASH BOROUGH COUNCIL,15320,Green Space                   ,Electricity                   ,17-Aug-2022,TOTALENERGIES GAS & POWER LTD           ,840.55,Sep-22
EREWASH BOROUGH COUNCIL,15319,Public Conveniences           ,Electricity                   ,17-Aug-2022,TOTALENERGIES GAS & POWER LTD           ,539.32,Sep-22
EREWASH BOROUGH COUNCIL,15319,CCTV - Ilkeston and Long Eaton,Electricity                   ,17-Aug-2022,TOTALENERGIES GAS & POWER LTD           ,370.83,Sep-22
EREWASH BOROUGH COUNCIL,15319,Car Parking                   ,Electricity                   ,17-Aug-2022,TOTALENERGIES GAS & POWER LTD           ,689.50,Sep-22
EREWASH BOROUGH COUNCIL,15319,Ilkeston Market               ,Electricity                   ,17-Aug-2022,TOTALENERGIES GAS & POWER LTD           ,333.41,Sep-22
EREWASH BOROUGH COUNCIL,15320,Merlin Way Depot              ,Electricity                   ,17-Aug-2022,TOTALENERGIES GAS & POWER LTD           ,"1,077.30",Sep-22
EREWASH BOROUGH COUNCIL,15320,Civic Accommodation Long Eaton,Electricity                   ,17-Aug-2022,TOTALENERGIES GAS & POWER LTD           ,"1,583.78",Sep-22
EREWASH BOROUGH COUNCIL,15279,Civic Accommodation Long Eaton,Gas                           ,14-Jul-2022,TOTALENERGIES GAS & POWER LTD           ,305.35,Sep-22
EREWASH BOROUGH COUNCIL,15320,Civic Accommodation Ilkeston  ,Electricity                   ,17-Aug-2022,TOTALENERGIES GAS & POWER LTD           ,"1,431.78",Sep-22
EREWASH BOROUGH COUNCIL,15279,Civic Accommodation Ilkeston  ,Gas                           ,14-Jul-2022,TOTALENERGIES GAS & POWER LTD           ,484.73,Sep-22
EREWASH BOROUGH COUNCIL,15319,Toll Bar House                ,Electricity                   ,17-Aug-2022,TOTALENERGIES GAS & POWER LTD           ,396.40,Sep-22
EREWASH BOROUGH COUNCIL,15320,Sandiacre Friesland Sports Ctr,Electricity                   ,17-Aug-2022,TOTALENERGIES GAS & POWER LTD           ,628.68,Sep-22
EREWASH BOROUGH COUNCIL,16086,Homelessness                  ,Homelessness-Lease Properties ,20-Sep-2022,TUNTUM HOUSING ASSOCIATION.             ,"1,238.25",Sep-22
EREWASH BOROUGH COUNCIL,16242,EBC Balance Sheet             ,Payroll Coll Acc - Trade Union,23-Sep-2022,UNISON                                  ,336.45,Sep-22
EREWASH BOROUGH COUNCIL,16039,Play Areas                    ,Materials/Consumables         ,30-Jun-2022,USTIGATE WATERPLAY LTD                  ,834.39,Sep-22
EREWASH BOROUGH COUNCIL,15286,Kerbside Recycling Collection ,Repairs and Maintenance       ,19-Aug-2022,VEHICLE WEIGHING SOLUTIONS              ,295.31,Sep-22
EREWASH BOROUGH COUNCIL,16043,Household Waste Collection    ,Repairs and Maintenance       ,10-Aug-2022,VELOCITY INDUSTRIES T/A VISION UK       ,425.00,Sep-22
EREWASH BOROUGH COUNCIL,15092,Dog Control                   ,Uniforms                      ,12-Aug-2022,VESTGUARD UK                            ,646.05,Sep-22
EREWASH BOROUGH COUNCIL,15092,Neighbourhood Wardens         ,Uniforms                      ,12-Aug-2022,VESTGUARD UK                            ,"1,260.00",Sep-22
EREWASH BOROUGH COUNCIL,16254,Infec Disease & Food Poisoning,Fees Costs and Expenses       ,15-Sep-2022,VITESSE CLEANING SOLUTIONS              ,910.00,Sep-22
EREWASH BOROUGH COUNCIL,16255,Infec Disease & Food Poisoning,Fees Costs and Expenses       ,20-Sep-2022,VITESSE CLEANING SOLUTIONS              ,"1,175.00",Sep-22
EREWASH BOROUGH COUNCIL,16065,Household Waste Collection    ,Repairs and Maintenance       ,01-Sep-2022,WARD RECYCLING                          ,350.07,Sep-22
EREWASH BOROUGH COUNCIL,16065,Trade Waste                   ,Repairs and Maintenance       ,01-Sep-2022,WARD RECYCLING                          ,0.00,Sep-22
EREWASH BOROUGH COUNCIL,16065,Kerbside Recycling Collection ,Repairs and Maintenance       ,01-Sep-2022,WARD RECYCLING                          ,50.01,Sep-22
EREWASH BOROUGH COUNCIL,16064,Green Space                   ,Materials/Consumables         ,01-Sep-2022,WARD RECYCLING                          ,"1,041.08",Sep-22
EREWASH BOROUGH COUNCIL,15542,Communications                ,General Publicity and Promotio,25-Aug-2022,WARNER (MIDLANDS) PLC                   ,"7,556.83",Sep-22
EREWASH BOROUGH COUNCIL,16286,Green Space                   ,Training                      ,31-Aug-2022,WAYNE PEAPELL CONSULTANCY LTD           ,700.00,Sep-22
EREWASH BOROUGH COUNCIL,15875,Play Areas                    ,Materials/Consumables         ,31-Aug-2022,WICKSTEED LEISURE LTD                   ,272.12,Sep-22
EREWASH BOROUGH COUNCIL,15341,Play Areas                    ,Materials/Consumables         ,19-Aug-2022,WICKSTEED LEISURE LTD                   ,296.75,Sep-22
EREWASH BOROUGH COUNCIL,15111,ICT Support Services          ,Data Lines                    ,14-Aug-2022,ZEN INTERNET LIMITED                    ,"2,080.00",Sep-22
